[Event "Titled Tuesday Blitz February 15 Early 2022"]
[White "Jain, Naveen"]
[Black "Mikhailovsky, Vladimir"]
[WhiteFideId "5003970"]
[BlackFideId "34105414"]
[WhiteElo "2036"]
[BlackElo "2371"]
[Result "0-1"]
[Round "01"]
[TimeControl "180+1"]
[Date "2022.02.15"]
[WhiteClock "0:00:03"]
[BlackClock "0:00:05"]

1. c4 {[%clk 0:03:00]}  e5 {[%clk 0:02:51]} 2. g3 {[%clk 0:03:01]}  h5 {[%clk 0:02:48]} 3. h4 {[%clk 0:03:00]}  Nf6 {[%clk 0:02:48]} 4. Nc3 {[%clk 0:02:59]}  Bc5 {[%clk 0:02:47]} 5. Bg2 {[%clk 0:02:58]}  d6 {[%clk 0:02:48]} 6. e3 {[%clk 0:02:58]}  O-O {[%clk 0:02:47]} 7. Nge2 {[%clk 0:02:54]}  Bg4 {[%clk 0:02:44]} 8. a3 {[%clk 0:02:52]}  c6 {[%clk 0:02:35]} 9. b4 {[%clk 0:02:51]}  Bb6 {[%clk 0:02:35]} 10. Bb2 {[%clk 0:02:52]}  Re8 {[%clk 0:02:33]} 11. Qc2 {[%clk 0:02:41]}  Nbd7 {[%clk 0:02:29]} 12. O-O {[%clk 0:02:39]}  Nf8 {[%clk 0:02:22]} 13. d4 {[%clk 0:02:23]}  exd4 {[%clk 0:02:03]} 14. Nxd4 {[%clk 0:02:20]}  Qd7 {[%clk 0:02:00]} 15. Ne4 {[%clk 0:02:09]}  Nxe4 {[%clk 0:01:55]} 16. Bxe4 {[%clk 0:02:10]}  Rad8 {[%clk 0:01:27]} 17. Bf5 {[%clk 0:02:05]}  Bxf5 {[%clk 0:01:11]} 18. Nxf5 {[%clk 0:02:06]}  f6 {[%clk 0:00:53]} 19. Rad1 {[%clk 0:02:00]}  Qe6 {[%clk 0:00:49]} 20. Rfe1 {[%clk 0:01:44]}  Rd7 {[%clk 0:00:48]} 21. Rd2 {[%clk 0:01:21]}  Red8 {[%clk 0:00:48]} 22. Red1 {[%clk 0:01:20]}  Bc7 {[%clk 0:00:37]} 23. Nd4 {[%clk 0:01:14]}  Qg4 {[%clk 0:00:35]} 24. Qf5 {[%clk 0:01:07]}  d5 {[%clk 0:00:32]} 25. Qxg4 {[%clk 0:01:01]}  hxg4 {[%clk 0:00:33]} 26. c5 {[%clk 0:00:57]}  Ng6 {[%clk 0:00:29]} 27. h5 {[%clk 0:00:47]}  Ne5 {[%clk 0:00:29]} 28. h6 {[%clk 0:00:47]}  gxh6 {[%clk 0:00:24]} 29. Kg2 {[%clk 0:00:47]}  h5 {[%clk 0:00:21]} 30. Rh1 {[%clk 0:00:44]}  Rh7 {[%clk 0:00:21]} 31. Ne6 {[%clk 0:00:44]}  Rdd7 {[%clk 0:00:21]} 32. Rdd1 {[%clk 0:00:26]}  Nf3 {[%clk 0:00:20]} 33. Bxf6 {[%clk 0:00:20]}  Kf7 {[%clk 0:00:20]} 34. Nxc7 {[%clk 0:00:16]}  Kxf6 {[%clk 0:00:20]} 35. Ne8+ {[%clk 0:00:09]}  Ke5 {[%clk 0:00:14]} 36. Nd6 {[%clk 0:00:10]}  b6 {[%clk 0:00:12]} 37. Rb1 {[%clk 0:00:09]}  Rh6 {[%clk 0:00:09]} 38. Rhd1 {[%clk 0:00:07]}  Rdh7 {[%clk 0:00:08]} 39. Rh1 {[%clk 0:00:03]}  h4 {[%clk 0:00:08]} 40. gxh4 {[%clk 0:00:03]}  Nxh4+ {[%clk 0:00:09]} 41. Kf1 {[%clk 0:00:03]}  Nf3 {[%clk 0:00:08]} 42. Rxh6 {[%clk 0:00:03]}  Rxh6 {[%clk 0:00:09]} 43. Ke2 {[%clk 0:00:03]}  Rh2 {[%clk 0:00:07]} 44. Nc8 {[%clk 0:00:03]}  bxc5 {[%clk 0:00:07]} 45. bxc5 {[%clk 0:00:04]}  Ng5 {[%clk 0:00:07]} 46. Nxa7 {[%clk 0:00:04]}  Ne4 {[%clk 0:00:07]} 47. Rf1 {[%clk 0:00:04]}  Ng3+ {[%clk 0:00:07]} 48. Ke1 {[%clk 0:00:05]}  Nxf1 {[%clk 0:00:08]} 49. Kxf1 {[%clk 0:00:06]}  Rh6 {[%clk 0:00:07]} 50. Nc8 {[%clk 0:00:05]}  d4 {[%clk 0:00:06]} 51. exd4+ {[%clk 0:00:04]}  Kxd4 {[%clk 0:00:07]} 52. Nb6 {[%clk 0:00:04]}  Kxc5 {[%clk 0:00:07]} 53. Nd7+ {[%clk 0:00:05]}  Kd4 {[%clk 0:00:07]} 54. a4 {[%clk 0:00:05]}  c5 {[%clk 0:00:07]} 55. a5 {[%clk 0:00:05]}  Ra6 {[%clk 0:00:07]} 56. Nb8 {[%clk 0:00:04]}  Ra8 {[%clk 0:00:05]} 57. Nc6+ {[%clk 0:00:04]}  Kd5 {[%clk 0:00:05]} 58. Ne7+ {[%clk 0:00:03]}  Ke4 {[%clk 0:00:05]} 59. Nc6 {[%clk 0:00:02]}  Ra6 {[%clk 0:00:05]} 60. Ke2 {[%clk 0:00:03]}  Rxc6 {[%clk 0:00:05]} 0-1


[Site "https://www.chess.com"]

[Event "Titled Tuesday Blitz February 15 Early 2022"]
[White "Janaszak, Dawid"]
[Black "De Souza Sa, Apolo"]
[WhiteFideId "1119206"]
[BlackFideId "324225390"]
[WhiteElo "2199"]
[BlackElo "1828"]
[Result "1-0"]
[Round "01"]
[TimeControl "180+1"]
[Date "2022.02.15"]
[WhiteClock "0:02:10"]
[BlackClock "0:01:45"]

1. e4 {[%clk 0:03:00]}  c5 {[%clk 0:02:56]} 2. Nc3 {[%clk 0:02:59]}  Nc6 {[%clk 0:02:55]} 3. Bb5 {[%clk 0:02:58]}  Nd4 {[%clk 0:02:55]} 4. Nf3 {[%clk 0:02:58]}  Nxb5 {[%clk 0:02:55]} 5. Nxb5 {[%clk 0:02:59]}  d5 {[%clk 0:02:55]} 6. exd5 {[%clk 0:02:58]}  a6 {[%clk 0:02:55]} 7. Nc3 {[%clk 0:02:58]}  Nf6 {[%clk 0:02:56]} 8. d4 {[%clk 0:02:58]}  Nxd5 {[%clk 0:02:55]} 9. dxc5 {[%clk 0:02:57]}  Nxc3 {[%clk 0:02:54]} 10. Qxd8+ {[%clk 0:02:58]}  Kxd8 {[%clk 0:02:54]} 11. bxc3 {[%clk 0:02:59]}  f6 {[%clk 0:02:53]} 12. Be3 {[%clk 0:02:57]}  e5 {[%clk 0:02:53]} 13. Nd2 {[%clk 0:02:54]}  Be6 {[%clk 0:02:38]} 14. a4 {[%clk 0:02:46]}  Rc8 {[%clk 0:02:31]} 15. Ne4 {[%clk 0:02:43]}  Bf5 {[%clk 0:02:24]} 16. O-O-O+ {[%clk 0:02:35]}  Ke8 {[%clk 0:02:02]} 17. Nd6+ {[%clk 0:02:30]}  Bxd6 {[%clk 0:02:02]} 18. Rxd6 {[%clk 0:02:26]}  Ke7 {[%clk 0:01:58]} 19. Rhd1 {[%clk 0:02:16]}  Rhd8 {[%clk 0:01:57]} 20. f4 {[%clk 0:02:12]}  Be4 {[%clk 0:01:48]} 21. fxe5 {[%clk 0:02:10]}  fxe5 {[%clk 0:01:45]} 22. Bg5+ {[%clk 0:02:10]} 1-0


[Site "https://www.chess.com"]

[Event "Titled Tuesday Blitz February 15 Early 2022"]
[White "Jobava, Baadur"]
[Black "Rakhimgaliyev, Yerlan"]
[WhiteFideId "13601520"]
[BlackFideId "13705148"]
[WhiteElo "2617"]
[BlackElo "2261"]
[Result "1-0"]
[Round "01"]
[TimeControl "180+1"]
[Date "2022.02.15"]
[WhiteClock "0:00:45"]
[BlackClock "0:00:24"]

1. b3 {[%clk 0:02:55]}  Nf6 {[%clk 0:02:58]} 2. Bb2 {[%clk 0:02:56]}  d5 {[%clk 0:02:58]} 3. e3 {[%clk 0:02:55]}  c5 {[%clk 0:02:58]} 4. Nf3 {[%clk 0:02:55]}  Nc6 {[%clk 0:02:58]} 5. Bb5 {[%clk 0:02:55]}  Bf5 {[%clk 0:02:57]} 6. O-O {[%clk 0:02:53]}  e6 {[%clk 0:02:58]} 7. Ne5 {[%clk 0:02:50]}  Qc7 {[%clk 0:02:54]} 8. d3 {[%clk 0:02:49]}  Bd6 {[%clk 0:02:53]} 9. Bxc6+ {[%clk 0:02:50]}  bxc6 {[%clk 0:02:54]} 10. f4 {[%clk 0:02:50]}  O-O {[%clk 0:02:54]} 11. Nd2 {[%clk 0:02:51]}  Nd7 {[%clk 0:02:54]} 12. e4 {[%clk 0:02:45]}  Bg6 {[%clk 0:02:48]} 13. Nxd7 {[%clk 0:02:34]}  Qxd7 {[%clk 0:02:48]} 14. Qf3 {[%clk 0:02:33]}  f5 {[%clk 0:02:40]} 15. e5 {[%clk 0:02:25]}  Be7 {[%clk 0:02:30]} 16. Qf2 {[%clk 0:02:25]}  Rfb8 {[%clk 0:02:21]} 17. c4 {[%clk 0:02:13]}  a5 {[%clk 0:02:20]} 18. a4 {[%clk 0:02:05]}  Kf7 {[%clk 0:01:46]} 19. Ba3 {[%clk 0:02:03]}  Rb4 {[%clk 0:01:39]} 20. Bxb4 {[%clk 0:01:59]}  cxb4 {[%clk 0:01:40]} 21. Rac1 {[%clk 0:01:55]}  Rd8 {[%clk 0:00:54]} 22. Nf3 {[%clk 0:01:46]}  Bh5 {[%clk 0:00:46]} 23. Ng5+ {[%clk 0:01:37]}  Bxg5 {[%clk 0:00:44]} 24. fxg5 {[%clk 0:01:38]}  dxc4 {[%clk 0:00:37]} 25. dxc4 {[%clk 0:01:35]}  Qd4 {[%clk 0:00:38]} 26. h3 {[%clk 0:01:21]}  Qxf2+ {[%clk 0:00:37]} 27. Rxf2 {[%clk 0:01:22]}  Ke7 {[%clk 0:00:37]} 28. Kf1 {[%clk 0:00:58]}  Rd3 {[%clk 0:00:37]} 29. Rb1 {[%clk 0:00:58]}  Bd1 {[%clk 0:00:35]} 30. Rfb2 {[%clk 0:00:55]}  c5 {[%clk 0:00:26]} 31. Ke1 {[%clk 0:00:53]}  Bh5 {[%clk 0:00:26]} 32. Rd2 {[%clk 0:00:45]}  Re3+ {[%clk 0:00:23]} 33. Kf2 {[%clk 0:00:45]}  Rxe5 {[%clk 0:00:24]} 34. Re1 {[%clk 0:00:46]}  Be8 {[%clk 0:00:24]} 35. Rxe5 {[%clk 0:00:45]} 1-0


[Site "https://www.chess.com"]

[Event "Titled Tuesday Blitz February 15 Early 2022"]
[White "Johnson, Donald"]
[Black "Korchmar, Vasiliy"]
[WhiteFideId "30949122"]
[BlackFideId "24131750"]
[WhiteElo "1724"]
[BlackElo "2370"]
[Result "0-1"]
[Round "01"]
[TimeControl "180+1"]
[Date "2022.02.15"]
[WhiteClock "0:00:01"]
[BlackClock "0:00:07"]

1. e4 {[%clk 0:03:00]}  c5 {[%clk 0:02:58]} 2. Nf3 {[%clk 0:03:01]}  d6 {[%clk 0:02:58]} 3. d4 {[%clk 0:03:01]}  cxd4 {[%clk 0:02:59]} 4. Nxd4 {[%clk 0:03:02]}  Nf6 {[%clk 0:02:59]} 5. Nc3 {[%clk 0:03:02]}  Nc6 {[%clk 0:02:59]} 6. Bg5 {[%clk 0:03:00]}  e6 {[%clk 0:02:59]} 7. Qd2 {[%clk 0:03:01]}  a6 {[%clk 0:02:59]} 8. O-O-O {[%clk 0:03:01]}  h6 {[%clk 0:03:00]} 9. Nxc6 {[%clk 0:02:59]}  bxc6 {[%clk 0:03:01]} 10. Bf4 {[%clk 0:02:59]}  d5 {[%clk 0:02:57]} 11. Qe3 {[%clk 0:03:00]}  Bb4 {[%clk 0:02:56]} 12. Be2 {[%clk 0:02:56]}  O-O {[%clk 0:02:56]} 13. g4 {[%clk 0:02:43]}  Bxc3 {[%clk 0:02:54]} 14. Qxc3 {[%clk 0:02:40]}  Nxe4 {[%clk 0:02:53]} 15. Qe3 {[%clk 0:02:37]}  Qf6 {[%clk 0:02:32]} 16. f3 {[%clk 0:02:31]}  Nf2 {[%clk 0:02:27]} 17. Qxf2 {[%clk 0:02:00]}  Qxf4+ {[%clk 0:02:27]} 18. Kb1 {[%clk 0:02:01]}  e5 {[%clk 0:02:27]} 19. h4 {[%clk 0:01:56]}  Bxg4 {[%clk 0:02:18]} 20. Rdg1 {[%clk 0:01:18]}  Bf5 {[%clk 0:02:13]} 21. Rh2 {[%clk 0:01:18]}  h5 {[%clk 0:02:06]} 22. Rhg2 {[%clk 0:01:17]}  Bg6 {[%clk 0:01:50]} 23. Bd3 {[%clk 0:01:09]}  e4 {[%clk 0:01:49]} 24. Qd4 {[%clk 0:00:53]}  c5 {[%clk 0:01:33]} 25. Qxd5 {[%clk 0:00:48]}  Rad8 {[%clk 0:00:55]} 26. Qb3 {[%clk 0:00:29]}  exd3 {[%clk 0:00:26]} 27. Rxg6 {[%clk 0:00:29]}  d2 {[%clk 0:00:13]} 28. Rxg7+ {[%clk 0:00:28]}  Kh8 {[%clk 0:00:13]} 29. c3 {[%clk 0:00:03]}  Qf5+ {[%clk 0:00:13]} 30. Ka1 {[%clk 0:00:02]}  d1=Q+ {[%clk 0:00:14]} 31. Rxd1 {[%clk 0:00:02]}  Rxd1+ {[%clk 0:00:15]} 32. Qxd1 {[%clk 0:00:02]}  Kxg7 {[%clk 0:00:15]} 33. Qg1+ {[%clk 0:00:02]}  Qg6 {[%clk 0:00:14]} 34. Qf1 {[%clk 0:00:03]}  Re8 {[%clk 0:00:13]} 35. a3 {[%clk 0:00:04]}  Re6 {[%clk 0:00:12]} 36. Qc4 {[%clk 0:00:03]}  Qf5 {[%clk 0:00:12]} 37. Ka2 {[%clk 0:00:03]}  Qxf3 {[%clk 0:00:12]} 38. Qxc5 {[%clk 0:00:03]}  Qg4 {[%clk 0:00:08]} 39. Qf2 {[%clk 0:00:02]}  Rf6 {[%clk 0:00:07]} 40. Qe3 {[%clk 0:00:01]}  Qc4+ {[%clk 0:00:07]} 0-1


[Site "https://www.chess.com"]

[Event "Titled Tuesday Blitz February 15 Early 2022"]
[White "Kamsky, Gata"]
[Black "Fiorito, Fabian"]
[WhiteFideId "2000024"]
[BlackFideId "100200"]
[WhiteElo "2645"]
[BlackElo "2395"]
[Result "1/2-1/2"]
[Round "01"]
[TimeControl "180+1"]
[Date "2022.02.15"]
[WhiteClock "0:00:23"]
[BlackClock "0:01:10"]

1. d4 {[%clk 0:03:00]}  d5 {[%clk 0:02:58]} 2. Bf4 {[%clk 0:02:59]}  Nf6 {[%clk 0:02:58]} 3. e3 {[%clk 0:02:59]}  c5 {[%clk 0:02:59]} 4. c3 {[%clk 0:02:59]}  Nc6 {[%clk 0:02:59]} 5. Nd2 {[%clk 0:02:59]}  Bf5 {[%clk 0:03:00]} 6. Qb3 {[%clk 0:02:57]}  Qd7 {[%clk 0:03:00]} 7. Ngf3 {[%clk 0:02:56]}  c4 {[%clk 0:03:00]} 8. Qd1 {[%clk 0:02:52]}  b5 {[%clk 0:03:00]} 9. a3 {[%clk 0:02:50]}  h6 {[%clk 0:03:00]} 10. Be2 {[%clk 0:02:49]}  e6 {[%clk 0:02:58]} 11. O-O {[%clk 0:02:49]}  Bd6 {[%clk 0:02:54]} 12. Bxd6 {[%clk 0:02:47]}  Qxd6 {[%clk 0:02:55]} 13. Re1 {[%clk 0:02:34]}  O-O {[%clk 0:02:54]} 14. Qc1 {[%clk 0:02:33]}  a5 {[%clk 0:02:52]} 15. b3 {[%clk 0:02:32]}  e5 {[%clk 0:02:26]} 16. a4 {[%clk 0:02:29]}  e4 {[%clk 0:01:58]} 17. Nh4 {[%clk 0:02:06]}  Bg4 {[%clk 0:01:58]} 18. axb5 {[%clk 0:02:02]}  Bxe2 {[%clk 0:01:57]} 19. Rxe2 {[%clk 0:01:52]}  Ng4 {[%clk 0:01:56]} 20. g3 {[%clk 0:01:51]}  Ne7 {[%clk 0:01:43]} 21. bxc4 {[%clk 0:01:50]}  g5 {[%clk 0:01:43]} 22. Ng2 {[%clk 0:01:50]}  Qg6 {[%clk 0:01:42]} 23. f3 {[%clk 0:01:04]}  exf3 {[%clk 0:01:38]} 24. Nxf3 {[%clk 0:01:04]}  Qd3 {[%clk 0:01:24]} 25. Rea2 {[%clk 0:00:31]}  dxc4 {[%clk 0:01:10]} 26. h3 {[%clk 0:00:23]} 1/2-1/2


[Site "https://www.chess.com"]

[Event "Titled Tuesday Blitz February 15 Early 2022"]
[White "Karabalis, Harilos"]
[Black "Makarian, Rudik"]
[WhiteFideId "4621808"]
[BlackFideId "44105681"]
[WhiteElo "2168"]
[BlackElo "2486"]
[Result "0-1"]
[Round "01"]
[TimeControl "180+1"]
[Date "2022.02.15"]
[WhiteClock "0:01:13"]
[BlackClock "0:01:04"]

1. e4 {[%clk 0:02:59]}  c5 {[%clk 0:02:59]} 2. a3 {[%clk 0:02:58]}  g6 {[%clk 0:02:59]} 3. h4 {[%clk 0:02:58]}  h6 {[%clk 0:02:55]} 4. Nc3 {[%clk 0:02:57]}  Bg7 {[%clk 0:02:54]} 5. Bc4 {[%clk 0:02:56]}  Nc6 {[%clk 0:02:54]} 6. d3 {[%clk 0:02:55]}  e6 {[%clk 0:02:55]} 7. Nge2 {[%clk 0:02:53]}  Nf6 {[%clk 0:02:52]} 8. Ba2 {[%clk 0:02:51]}  d5 {[%clk 0:02:50]} 9. exd5 {[%clk 0:02:51]}  exd5 {[%clk 0:02:51]} 10. Nf4 {[%clk 0:02:51]}  O-O {[%clk 0:02:49]} 11. Nfxd5 {[%clk 0:02:48]}  Re8+ {[%clk 0:02:48]} 12. Kf1 {[%clk 0:02:47]}  Nxd5 {[%clk 0:02:29]} 13. Nxd5 {[%clk 0:02:46]}  Nd4 {[%clk 0:02:21]} 14. c3 {[%clk 0:02:42]}  Nf5 {[%clk 0:02:15]} 15. h5 {[%clk 0:02:41]}  g5 {[%clk 0:02:13]} 16. Ne3 {[%clk 0:02:34]}  Nxe3+ {[%clk 0:01:43]} 17. Bxe3 {[%clk 0:02:33]}  b6 {[%clk 0:01:37]} 18. Qe2 {[%clk 0:01:53]}  Bf5 {[%clk 0:01:21]} 19. Rd1 {[%clk 0:01:53]}  Qd7 {[%clk 0:01:22]} 20. Qf3 {[%clk 0:01:45]}  Rad8 {[%clk 0:01:17]} 21. Kg1 {[%clk 0:01:33]}  Be4 {[%clk 0:01:07]} 22. dxe4 {[%clk 0:01:12]}  Qxd1+ {[%clk 0:01:06]} 23. Kh2 {[%clk 0:01:13]}  Be5+ {[%clk 0:01:04]} 0-1


[Site "https://www.chess.com"]

[Event "Titled Tuesday Blitz February 15 Early 2022"]
[White "Kett, Tim"]
[Black "Galyas, Miklos"]
[WhiteFideId "1801210"]
[BlackFideId "707244"]
[WhiteElo "2098"]
[BlackElo "2409"]
[Result "1/2-1/2"]
[Round "01"]
[TimeControl "180+1"]
[Date "2022.02.15"]
[WhiteClock "0:00:12"]
[BlackClock "0:01:04"]

1. e4 {[%clk 0:03:00]}  Nc6 {[%clk 0:02:57]} 2. Nc3 {[%clk 0:02:58]}  d6 {[%clk 0:02:57]} 3. f4 {[%clk 0:02:58]}  g6 {[%clk 0:02:56]} 4. Nf3 {[%clk 0:02:51]}  Bg7 {[%clk 0:02:56]} 5. Bb5 {[%clk 0:02:42]}  a6 {[%clk 0:02:50]} 6. Bxc6+ {[%clk 0:02:42]}  bxc6 {[%clk 0:02:50]} 7. d3 {[%clk 0:02:41]}  Nf6 {[%clk 0:02:49]} 8. O-O {[%clk 0:02:39]}  O-O {[%clk 0:02:49]} 9. Qe1 {[%clk 0:02:39]}  Rb8 {[%clk 0:02:48]} 10. Qh4 {[%clk 0:02:38]}  c5 {[%clk 0:02:48]} 11. f5 {[%clk 0:02:37]}  e6 {[%clk 0:02:17]} 12. Bh6 {[%clk 0:02:27]}  Nh5 {[%clk 0:02:09]} 13. Bxg7 {[%clk 0:02:24]}  Qxh4 {[%clk 0:02:08]} 14. Nxh4 {[%clk 0:02:21]}  Kxg7 {[%clk 0:02:05]} 15. g4 {[%clk 0:02:12]}  Nf6 {[%clk 0:02:03]} 16. g5 {[%clk 0:02:11]}  Nd7 {[%clk 0:01:59]} 17. fxe6 {[%clk 0:01:35]}  fxe6 {[%clk 0:01:58]} 18. Rxf8 {[%clk 0:01:34]}  Kxf8 {[%clk 0:01:58]} 19. Rf1+ {[%clk 0:01:33]}  Kg7 {[%clk 0:01:58]} 20. b3 {[%clk 0:01:32]}  Ne5 {[%clk 0:01:58]} 21. Nf3 {[%clk 0:01:30]}  Nc6 {[%clk 0:01:57]} 22. e5 {[%clk 0:01:15]}  Bd7 {[%clk 0:01:54]} 23. Ne4 {[%clk 0:01:11]}  Nb4 {[%clk 0:01:47]} 24. exd6 {[%clk 0:01:08]}  cxd6 {[%clk 0:01:47]} 25. Nxd6 {[%clk 0:01:07]}  Nxc2 {[%clk 0:01:47]} 26. Ne5 {[%clk 0:01:06]}  Be8 {[%clk 0:01:45]} 27. Nxe8+ {[%clk 0:01:06]}  Rxe8 {[%clk 0:01:45]} 28. Rf7+ {[%clk 0:01:06]}  Kg8 {[%clk 0:01:45]} 29. Rc7 {[%clk 0:01:02]}  Nb4 {[%clk 0:01:40]} 30. Ng4 {[%clk 0:01:01]}  Rd8 {[%clk 0:01:36]} 31. Nf6+ {[%clk 0:00:52]}  Kf8 {[%clk 0:01:36]} 32. Nxh7+ {[%clk 0:00:52]}  Kg8 {[%clk 0:01:35]} 33. Nf6+ {[%clk 0:00:51]}  Kf8 {[%clk 0:01:35]} 34. h4 {[%clk 0:00:37]}  Rxd3 {[%clk 0:01:25]} 35. h5 {[%clk 0:00:35]}  gxh5 {[%clk 0:01:25]} 36. Kh2 {[%clk 0:00:29]}  Nd5 {[%clk 0:01:22]} 37. g6 {[%clk 0:00:16]}  Nxf6 {[%clk 0:01:20]} 38. Rf7+ {[%clk 0:00:17]}  Kg8 {[%clk 0:01:20]} 39. Rxf6 {[%clk 0:00:17]}  Rd2+ {[%clk 0:01:09]} 40. Kh3 {[%clk 0:00:17]}  Rxa2 {[%clk 0:01:09]} 41. Rxe6 {[%clk 0:00:17]}  Kg7 {[%clk 0:01:07]} 42. Kh4 {[%clk 0:00:13]}  Rh2+ {[%clk 0:01:06]} 43. Kg5 {[%clk 0:00:13]}  Rg2+ {[%clk 0:01:03]} 44. Kxh5 {[%clk 0:00:13]}  Rh2+ {[%clk 0:01:04]} 45. Kg5 {[%clk 0:00:13]}  Rg2+ {[%clk 0:01:04]} 46. Kh5 {[%clk 0:00:13]}  Rh2+ {[%clk 0:01:04]} 47. Kg5 {[%clk 0:00:13]}  Rg2+ {[%clk 0:01:04]} 48. Kh5 {[%clk 0:00:12]} 1/2-1/2


[Site "https://www.chess.com"]

[Event "Titled Tuesday Blitz February 15 Early 2022"]
[White "Kezin, Roman"]
[Black "Sliwicki, Damian"]
[WhiteFideId "24124621"]
[BlackFideId "1127128"]
[WhiteElo "2509"]
[BlackElo "2084"]
[Result "1-0"]
[Round "01"]
[TimeControl "180+1"]
[Date "2022.02.15"]
[WhiteClock "0:00:52"]
[BlackClock "0:00:11"]

1. b3 {[%clk 0:03:00]}  e5 {[%clk 0:02:59]} 2. Bb2 {[%clk 0:03:01]}  Nc6 {[%clk 0:03:00]} 3. e3 {[%clk 0:03:01]}  a6 {[%clk 0:02:59]} 4. c4 {[%clk 0:02:59]}  Nf6 {[%clk 0:02:59]} 5. Nc3 {[%clk 0:02:57]}  Be7 {[%clk 0:02:56]} 6. g4 {[%clk 0:02:56]}  O-O {[%clk 0:02:53]} 7. g5 {[%clk 0:02:54]}  Ne8 {[%clk 0:02:52]} 8. h4 {[%clk 0:02:54]}  d6 {[%clk 0:02:38]} 9. Bg2 {[%clk 0:02:53]}  Bf5 {[%clk 0:02:37]} 10. d3 {[%clk 0:02:51]}  Nb4 {[%clk 0:02:22]} 11. Ne4 {[%clk 0:02:41]}  d5 {[%clk 0:02:10]} 12. cxd5 {[%clk 0:02:37]}  Nxd5 {[%clk 0:02:11]} 13. Bxe5 {[%clk 0:02:29]}  Bb4+ {[%clk 0:02:07]} 14. Kf1 {[%clk 0:02:29]}  f6 {[%clk 0:01:58]} 15. Bb2 {[%clk 0:02:24]}  fxg5 {[%clk 0:01:44]} 16. Qe2 {[%clk 0:02:06]}  gxh4 {[%clk 0:01:24]} 17. Nh3 {[%clk 0:02:02]}  Bg4 {[%clk 0:01:09]} 18. f3 {[%clk 0:01:56]}  Nef6 {[%clk 0:00:54]} 19. Kg1 {[%clk 0:01:52]}  Bh5 {[%clk 0:00:47]} 20. Rc1 {[%clk 0:01:43]}  Ba5 {[%clk 0:00:45]} 21. Nxf6+ {[%clk 0:01:39]}  Nxf6 {[%clk 0:00:46]} 22. Nf4 {[%clk 0:01:39]}  Bb6 {[%clk 0:00:40]} 23. Bxf6 {[%clk 0:01:29]}  Qxf6 {[%clk 0:00:40]} 24. Nxh5 {[%clk 0:01:29]}  Qg5 {[%clk 0:00:37]} 25. f4 {[%clk 0:01:29]}  Qg6 {[%clk 0:00:26]} 26. Rxh4 {[%clk 0:01:28]}  Rae8 {[%clk 0:00:26]} 27. Rh3 {[%clk 0:01:25]}  Rf5 {[%clk 0:00:21]} 28. Kh1 {[%clk 0:01:24]}  Bxe3 {[%clk 0:00:10]} 29. Rxc7 {[%clk 0:01:23]}  Bxf4 {[%clk 0:00:09]} 30. Rxg7+ {[%clk 0:01:23]}  Kh8 {[%clk 0:00:08]} 31. Rxh7+ {[%clk 0:01:20]}  Kxh7 {[%clk 0:00:03]} 32. Nxf4+ {[%clk 0:01:16]}  Kg7 {[%clk 0:00:02]} 33. Qb2+ {[%clk 0:01:09]}  Qf6 {[%clk 0:00:03]} 34. Nh5+ {[%clk 0:01:07]}  Rxh5 {[%clk 0:00:03]} 35. Qxf6+ {[%clk 0:01:07]}  Kxf6 {[%clk 0:00:04]} 36. Rxh5 {[%clk 0:01:07]}  Re2 {[%clk 0:00:05]} 37. a4 {[%clk 0:01:03]}  Rb2 {[%clk 0:00:05]} 38. Bd5 {[%clk 0:01:03]}  b5 {[%clk 0:00:04]} 39. axb5 {[%clk 0:01:00]}  axb5 {[%clk 0:00:05]} 40. Bg8 {[%clk 0:01:00]}  b4 {[%clk 0:00:03]} 41. Bc4 {[%clk 0:01:00]}  Kg6 {[%clk 0:00:04]} 42. Rb5 {[%clk 0:00:59]}  Kf6 {[%clk 0:00:05]} 43. Kg1 {[%clk 0:00:59]}  Ke7 {[%clk 0:00:04]} 44. Kf1 {[%clk 0:01:00]}  Kd6 {[%clk 0:00:05]} 45. Ke1 {[%clk 0:01:00]}  Kc6 {[%clk 0:00:05]} 46. Kd1 {[%clk 0:00:58]}  Rh2 {[%clk 0:00:03]} 47. d4 {[%clk 0:00:55]}  Rg2 {[%clk 0:00:03]} 48. Bd5+ {[%clk 0:00:53]}  Kxb5 {[%clk 0:00:04]} 49. Bxg2 {[%clk 0:00:54]}  Ka5 {[%clk 0:00:04]} 50. Kd2 {[%clk 0:00:54]}  Kb6 {[%clk 0:00:05]} 51. Kd3 {[%clk 0:00:55]}  Ka5 {[%clk 0:00:06]} 52. Kc4 {[%clk 0:00:55]}  Kb6 {[%clk 0:00:07]} 53. Kxb4 {[%clk 0:00:55]}  Ka7 {[%clk 0:00:08]} 54. Kc5 {[%clk 0:00:56]}  Ka6 {[%clk 0:00:08]} 55. b4 {[%clk 0:00:57]}  Ka7 {[%clk 0:00:08]} 56. b5 {[%clk 0:00:56]}  Kb8 {[%clk 0:00:09]} 57. d5 {[%clk 0:00:56]}  Ka7 {[%clk 0:00:10]} 58. d6 {[%clk 0:00:56]}  Kb8 {[%clk 0:00:11]} 59. Kc6 {[%clk 0:00:53]}  Ka7 {[%clk 0:00:12]} 60. d7 {[%clk 0:00:52]}  Kb8 {[%clk 0:00:11]} 61. b6 {[%clk 0:00:52]} 1-0


[Site "https://www.chess.com"]